{"text_format":"1","workbook":"xlsx","n_sheets":8,"sheets":["גיליון גישה","בטיחות בעבודה - 2.1","גיהות 2.2","תהליכים כימיים - 2.3","בטיחות ביולוגית - 2.4","רפואה תעסוקתית - 2.5","ארגונומיה - 2.6","בחירה מרשימה"],"not_rendered":{"charts":0,"images":3,"macros":1,"external_links":0,"defined_names":10,"comments":0,"pivot_tables":0},"unopened":[],"bounds":{"document_bytes":16777216,"sheet_cells":100000,"rows_first":2000,"rows_last":500,"rows_between":2000,"halvings":0,"cell_chars":16384,"cell_head_chars":4096},"cells_cut":0,"cells_raw":0,"read":"whole","date_system":"1900"}

{"sheet":"גיליון גישה","index":0,"n_rows":7,"n_cols":1,"rows_kept":7,"cut":false,"hidden":false,"merged":[[4,0,4,8],[6,0,6,8]]}
[]
[]
[]
[]
["נספח ב' - תנאי הסף ואמות המידה להיכלל במאגר"]
[]
["תחום מס' 2 - בטיחות וגיהות"]

{"sheet":"בטיחות בעבודה - 2.1","index":1,"n_rows":92,"n_cols":29,"rows_kept":92,"cut":false,"hidden":false,"merged":[[88,1,88,3],[63,1,63,2],[55,1,55,4],[69,1,69,3],[76,1,76,24],[5,0,5,6],[6,0,6,6],[19,1,19,2],[40,1,40,2],[7,0,7,6],[24,1,24,2],[8,4,8,6],[9,2,9,6],[10,2,10,6],[11,2,11,6],[12,2,12,6],[13,4,13,6],[14,2,14,3],[14,4,14,6],[15,2,15,6]]}
[]
[]
[]
[]
[]
["המוסד לביטוח לאומי מכרז מס' מ(2029)2018 להקמת מאגר יועצים עבור אגף הקרנות "]
["תחום מס' 2 - בטיחות וגיהות"]
["בטיחות בעבודה - 2.1"]
[null,null,"הנחיות למילוי הקובץ"]
[null,1,"יש למלא את כל הנתונים   הנדרשים בעמודות המסומנות בצבע צהוב"]
[null,2,"חלק מנתונים ימולאו באמצעות בחירה מרשימה סגורה, שתוצג בעת המיקום על התא המסוים."]
[null,3,"יש לשמור את הקובץ על גבי:דיסק און קי ."]
[null,4,"לאחר השלמת מילוי כל הנתונים הנדרשים בקובץ, יש לשמור את הקובץ בהתאם לפורמט הרלוונטי מהמפורטים להלן : "]
[null,4.0999999999999996,"יועץ עצמאי: מס' תת תחום-שם היועץ(שם פרטי ושם משפחה)-ת.ז כמודגם להלן: ",null,"2.1-משה כהן-231245799.xlsm "]
[null,4.2,"יועץ המוגש על ידי גורם אחר: מס' תת תחום-שם המגיש-ח.פ /ת.ז -שם היועץ(שם פרטי ושם משפחה)-ת.ז כמודגם להלן: ",null,"2.2-שם המגיש-ח.פ /ת.ז-משה כהן-231245799.xlsm "]
[null,5,"יש להדפיס את הקובץ ולהגישו כאשר הוא חתום על ידי היועץ המוצע "]
[null,6,"יש להגיש את ההצעה בצירוף: הדיסק און קי  ופלט הקובץ המודפס חתום כמפורט בסעיף 5 לעיל."]
[null,"שלב 1:"]
[]
[null,"סוג יועץ מוצע"]
[null,"סוג יועץ  (בחר מתוך רשימה)"]
[]
[null,"שלב 2:"]
[]
[null,"פרטים אישיים",null,null,null,null,null,null,null,null,null,null,null,null,null,null,null,null,null,"טבלת מקצוע/תחום עיסוק","מס' שנים בתחום"]
[null,"מספר זהות",null,null,null,null,null,null,null,null,null,null,null,null,null,null,null,null,null,"אדריכל גנים ופיתוח נוף",5]
[null,"שם פרטי",null,null,null,null,null,null,null,null,null,null,null,null,null,null,null,null,null,"אדריכל פנים","6-10"]
[null,"שם משפחה",null,null,null,null,null,null,null,null,null,null,null,null,null,null,null,null,null,"אדריכל תכנון מבנים","11-15"]
[null,"תאריך לידה",null,null,null,null,null,null,null,null,null,null,null,null,null,null,null,null,null,"יועץ איכות הסביבה","16-20"]
[null,"טלפון",null,null,null,null,null,null,null,null,null,null,null,null,null,null,null,null,null,"יועץ אלומיניום","מעל 20 "]
[null,"טלפון נייד",null,null,null,null,null,null,null,null,null,null,null,null,null,null,null,null,null,"יועץ ביטוח"]
[null,"פקס",null,null,null,null,null,null,null,null,null,null,null,null,null,null,null,null,null,"יועץ ומתכנן מערכות חשמל","סוג יועץ"]
[null,"דואר אלקטרוני",null,null,null,null,null,null,null,null,null,null,null,null,null,null,null,null,null,"יועץ ומתכנן תנועה","יועץ עצמאי"]
[null,"רחוב",null,null,null,null,null,null,null,null,null,null,null,null,null,null,null,null,null,"יועץ להכנת מפרטים וכתבי כמויות","יועץ שכיר"]
[null,"מס' בית",null,null,null,null,null,null,null,null,null,null,null,null,null,null,null,null,null,"יועץ לרישום מבנים"]
[null,"דירה",null,null,null,null,null,null,null,null,null,null,null,null,null,null,null,null,null,"יועץ נגישות","תואר"]
[null,"ת.ד.",null,null,null,null,null,null,null,null,null,null,null,null,null,null,null,null,null,"יועץ סופרפוזיציה","הנדסאי"]
[null,"ישוב",null,null,null,null,null,null,null,null,null,null,null,null,null,null,null,null,null,"יועץ רכש ציוד רפואי","טכנאי"]
[null,"מיקוד",null,null,null,null,null,null,null,null,null,null,null,null,null,null,null,null,null,"יועץ תכנון ובקרת מטבחים וחדרי אוכל","יועץ ביטוח"]
[null,null,null,null,null,null,null,null,null,null,null,null,null,null,null,null,null,null,null,null,"יועץ/מתכנן מעליות","ראשון",null,null,null,null,null,null,"יועץ נגישות (מבנים תשתיות וסביבה)"]
[null,"פרטי התאגיד מטעמו מוגש היועץ (במקרה של יועץ המועסק אצל אחר)"]
[null,"שם התאגיד"]
[null,"ח.פ/מספר מזהה"]
[null,"טלפון "]
[null,"פקס"]
[null,"דואר אלקטרוני"]
[null,"רחוב"]
[null,"מס' "]
[null,"דירה"]
[null,"ת.ד."]
[null,"ישוב"]
[null,"מיקוד"]
[]
[null,"שלב 3: - יש למלא בטבלה זו את כל תחומי העיסוק אליהם מוגשת ההצעה בהתאם לשמות ולמספרים שלהם בנספח ב'"]
[]
[null,"השכלה אקדמית"]
[null,"תואר","השכלה","תאריך קבלת הזכאות לתואר (יש להזין תאריך בפורמט הבא: dd/mm/yyyy)","שנות ותק מיום קבלת הזכאות"]
[null,null,null,null,{"$f":"IF(D58<>\"\",(TODAY()-D58)/365,\"\")","v":""}]
[null,null,null,null,{"$f":"IF(D59<>\"\",(TODAY()-D59)/365,\"\")","v":""}]
[null,null,null,null,""]
[null,null,null,null,""]
[null,null,null,null,""]
[]
[null,"רישום / רישיון"]
[null,"רישום/ רישיון מאיגוד/ משרד ממשלתי","תאריך זכאות (יש להזין תאריך בפורמט: dd/mm/yyyy)"]
[]
[]
[]
[]
[null,"ניסיון מקצועי"]
[null,"ניסיון מקצועי באחד או יותר מהתחומים המפורטים","מועד קבלת הזכאות לתואר/תעודה","מספר שנות ותק מיום קבלת הזכאות לתואר"]
[]
[null,null,null,{"$f":"IF(C73<>\"\",(TODAY()-C73)/365,\"\")","v":""}]
[null,null,null,"",null,null,null,null,null,null,null,null,null,null,null,null,null,null,null,null,null,null,null,null,null,null,null,null,"יועץ כלכלי"]
[null,null,null,null,null,null,null,null,null,null,null,null,null,null,null,null,null,null,null,null,null,null,null,null,null,null,null,null,"הנדסת תעשייה וניהול"]
[null,null,null,null,null,null,null,null,null,null,null,null,null,null,null,null,null,null,null,null,null,null,null,null,null,null,null,null,"מנהל פרויקטים"]
[null,"רשימת פרויקטים (יש להקפיד על הצגת פרויקטים שיתאימו לדרישות תקופת הניסיון המופרטות בעמודה 5, בנספח ב')",null,null,null,null,null,null,null,null,null,null,null,null,null,null,null,null,null,null,null,null,null,null,null,null,null,null,"סטטיסטיקאי"]
[null,"שם/נושא הפרויקט","שם הגוף עבורו בוצע הפרויקט","תיאור השירותים","שם המזמין/ הממליץ","טלפון","מועד התחלה",null,null,null,null,null,null,null,null,null,null,null,null,null,"יועץ/מתכנן מערכות מתח נמוך","שלישי",null,null,"מועד סיום",null,null,null,"רואה חשבון"]
[null,null,null,null,null,null,null,null,null,null,null,null,null,null,null,null,null,null,null,null,"יעוץ ותכנון בטיחות/מהנדס בטיחות","שני",null,null,null,null,null,null,"יועץ מערכות מידע"]
[null,null,null,null,null,null,null,null,null,null,null,null,null,null,null,null,null,null,null,null,"כלכלן",null,null,null,null,null,null,null,"בניית אתרי אינטרנט "]
[null,null,null,null,null,null,null,null,null,null,null,null,null,null,null,null,null,null,null,null,"מהנדס אזרחי",null,null,null,null,null,null,null,"Web-Master"]
[null,null,null,null,null,null,null,null,null,null,null,null,null,null,null,null,null,null,null,null,"מהנדס אינסטלציה",null,null,null,null,null,null,null,"יועץ פיתוח מדיה , שיווק ופרסום"]
[null,null,null,null,null,null,null,null,null,null,null,null,null,null,null,null,null,null,null,null,"מהנדס אלקטרוניקה",null,null,null,null,null,null,null,"ייעוץ בתחום מדעי  החברה"]
[null,null,null,null,null,null,null,null,null,null,null,null,null,null,null,null,null,null,null,null,"מהנדס אקוסטיקה",null,null,null,null,null,null,null,"רופא תעסוקתי"]
[null,null,null,null,null,null,null,"שנת סיום",null,null,null,null,null,null,null,null,null,null,null,null,"מהנדס מיזוג אויר",null,null,null,null,null,null,null,"פסיכולוג קליני"]
[]
[]
[]
[null,"הנני מצהיר בזאת שכל הפרטים והנתונים שמולאו על ידי בקובץ זה נכונים ומעודכנים ליום הגשת ההצעה"]
[null,null,null,null,null,null,null,null,null,null,null,null,null,null,null,null,null,null,null,null,null,null,null,null,null,null,null,null,"ממונה בטיחות ביולוגית"]
[]
[null,"חתימת היועץ",null,"תאריך"]

{"sheet":"גיהות 2.2","index":2,"n_rows":83,"n_cols":25,"rows_kept":83,"cut":false,"hidden":false,"merged":[[4,0,4,6],[5,0,5,6],[6,0,6,6],[19,1,19,2],[24,1,24,2],[8,4,8,6],[9,2,9,6],[10,2,10,6],[11,2,11,6],[12,2,12,6],[13,4,13,6],[14,2,14,3],[14,4,14,6],[15,2,15,6],[55,1,55,4],[61,1,61,2],[66,1,66,24],[79,1,79,3],[40,1,40,2]]}
[]
[]
[]
[]
["המוסד לביטוח לאומי מכרז מס' מ(2029)2018 להקמת מאגר יועצים עבור אגף הקרנות "]
["תחום מס' 2 - בטיחות וגיהות"]
["גיהות 2.2"]
[]
[null,null,"הנחיות למילוי הקובץ"]
[null,1,"יש למלא את כל הנתונים   הנדרשים בעמודות המסומנות בצבע צהוב"]
[null,2,"חלק מנתונים ימולאו באמצעות בחירה מרשימה סגורה, שתוצג בעת המיקום על התא המסוים."]
[null,3,"יש לשמור את הקובץ על גבי:דיסק און קי ."]
[null,4,"לאחר השלמת מילוי כל הנתונים הנדרשים בקובץ, יש לשמור את הקובץ בהתאם לפורמט הרלוונטי מהמפורטים להלן : "]
[null,4.0999999999999996,"יועץ עצמאי: מס' תת תחום-שם היועץ(שם פרטי ושם משפחה)-ת.ז כמודגם להלן: ",null,"2.2-משה כהן-231245799.xlsm "]
[null,4.2,"יועץ המוגש על ידי גורם אחר: מס' תת תחום-שם המגיש-ח.פ /ת.ז -שם היועץ(שם פרטי ושם משפחה)-ת.ז כמודגם להלן: ",null,"2.2-שם המגיש-ח.פ /ת.ז-משה כהן-231245799.xlsm "]
[null,5,"יש להדפיס את הקובץ ולהגישו כאשר הוא חתום על ידי היועץ המוצע "]
[null,6,"יש להגיש את ההצעה בצירוף: הדיסק און קי  ופלט הקובץ המודפס חתום כמפורט בסעיף 5 לעיל."]
[null,"שלב 1:"]
[]
[null,"סוג יועץ מוצע"]
[null,"סוג יועץ  (בחר מתוך רשימה)"]
[]
[null,"שלב 2:"]
[]
[null,"פרטים אישיים",null,null,null,null,null,null,null,null,null,null,null,null,null,null,null,null,null,"טבלת מקצוע/תחום עיסוק","מס' שנים בתחום"]
[null,"מספר זהות",null,null,null,null,null,null,null,null,null,null,null,null,null,null,null,null,null,"אדריכל גנים ופיתוח נוף",5]
[null,"שם פרטי",null,null,null,null,null,null,null,null,null,null,null,null,null,null,null,null,null,"אדריכל פנים","6-10"]
[null,"שם משפחה",null,null,null,null,null,null,null,null,null,null,null,null,null,null,null,null,null,"אדריכל תכנון מבנים","11-15"]
[null,"תאריך לידה",null,null,null,null,null,null,null,null,null,null,null,null,null,null,null,null,null,"יועץ איכות הסביבה","16-20"]
[null,"טלפון",null,null,null,null,null,null,null,null,null,null,null,null,null,null,null,null,null,"יועץ אלומיניום","מעל 20 "]
[null,"טלפון נייד",null,null,null,null,null,null,null,null,null,null,null,null,null,null,null,null,null,"יועץ ביטוח"]
[null,"פקס",null,null,null,null,null,null,null,null,null,null,null,null,null,null,null,null,null,"יועץ ומתכנן מערכות חשמל","סוג יועץ"]
[null,"דואר אלקטרוני",null,null,null,null,null,null,null,null,null,null,null,null,null,null,null,null,null,"יועץ ומתכנן תנועה","יועץ עצמאי"]
[null,"רחוב",null,null,null,null,null,null,null,null,null,null,null,null,null,null,null,null,null,"יועץ להכנת מפרטים וכתבי כמויות","יועץ שכיר"]
[null,"מס' בית",null,null,null,null,null,null,null,null,null,null,null,null,null,null,null,null,null,"יועץ לרישום מבנים"]
[null,"דירה",null,null,null,null,null,null,null,null,null,null,null,null,null,null,null,null,null,"יועץ נגישות","תואר"]
[null,"ת.ד.",null,null,null,null,null,null,null,null,null,null,null,null,null,null,null,null,null,"יועץ סופרפוזיציה","הנדסאי"]
[null,"ישוב",null,null,null,null,null,null,null,null,null,null,null,null,null,null,null,null,null,"יועץ רכש ציוד רפואי","טכנאי"]
[null,"מיקוד",null,null,null,null,null,null,null,null,null,null,null,null,null,null,null,null,null,"יועץ תכנון ובקרת מטבחים וחדרי אוכל","יועץ ביטוח"]
[null,null,null,null,null,null,null,null,null,null,null,null,null,null,null,null,null,null,null,null,"יועץ/מתכנן מעליות","ראשון"]
[null,"פרטי התאגיד מטעמו מוגש היועץ (במקרה של יועץ המועסק אצל אחר)"]
[null,"שם התאגיד"]
[null,"ח.פ/מספר מזהה"]
[null,"טלפון "]
[null,"פקס"]
[null,"דואר אלקטרוני"]
[null,"רחוב"]
[null,"מס' "]
[null,"דירה"]
[null,"ת.ד."]
[null,"ישוב"]
[null,"מיקוד"]
[]
[null,"שלב 3: - יש למלא בטבלה זו את כל תחומי העיסוק אליהם מוגשת ההצעה בהתאם לשמות ולמספרים שלהם בנספח ב'"]
[]
[null,"השכלה אקדמית"]
[null,"תואר","השכלה","תאריך קבלת הזכאות לתואר (יש להזין תאריך בפורמט הבא: dd/mm/yyyy)","שנות ותק מיום קבלת הזכאות"]
[null,null,null,null,{"$f":"IF(D58<>\"\",(TODAY()-D58)/365,\"\")","v":""}]
[null,null,null,null,{"$f":"IF(D59<>\"\",(TODAY()-D59)/365,\"\")","v":""}]
[null,null,null,null,""]
[]
[null,"ניסיון מקצועי"]
[null,"ניסיון מקצועי באחד או יותר מהתחומים המפורטים","מספר שנות ותק ממועד הזכאות לתואר"]
[]
[]
[]
[null,"רשימת פרויקטים (יש להקפיד על הצגת פרויקטים שיתאימו לדרישות תקופת הניסיון המופרטות בעמודה 5, בנספח ב')"]
[null,"שם/נושא הפרויקט","שם הגוף עבורו בוצע הפרויקט","תיאור השירותים","שם המזמין/ הממליץ","טלפון","מועד התחלה",null,null,null,null,null,null,null,null,null,null,null,null,null,"יועץ/מתכנן מערכות מתח נמוך","שלישי",null,null,"מועד סיום"]
[null,null,null,null,null,null,null,null,null,null,null,null,null,null,null,null,null,null,null,null,"יעוץ ותכנון בטיחות/מהנדס בטיחות","שני"]
[null,null,null,null,null,null,null,null,null,null,null,null,null,null,null,null,null,null,null,null,"כלכלן"]
[null,null,null,null,null,null,null,null,null,null,null,null,null,null,null,null,null,null,null,null,"מהנדס אזרחי"]
[null,null,null,null,null,null,null,null,null,null,null,null,null,null,null,null,null,null,null,null,"מהנדס אינסטלציה"]
[]
[]
[]
[null,null,null,null,null,null,null,null,null,null,null,null,null,null,null,null,null,null,null,null,"מהנדס אלקטרוניקה"]
[null,null,null,null,null,null,null,null,null,null,null,null,null,null,null,null,null,null,null,null,"מהנדס אקוסטיקה"]
[null,null,null,null,null,null,null,"שנת סיום",null,null,null,null,null,null,null,null,null,null,null,null,"מהנדס מיזוג אויר"]
[]
[null,"הנני מצהיר בזאת שכל הפרטים והנתונים שמולאו על ידי בקובץ זה נכונים ומעודכנים ליום הגשת ההצעה"]
[]
[]
[null,"חתימת היועץ",null,"תאריך"]

{"sheet":"תהליכים כימיים - 2.3","index":3,"n_rows":88,"n_cols":29,"rows_kept":88,"cut":false,"hidden":false,"merged":[[40,1,40,2],[5,0,5,6],[6,0,6,6],[7,0,7,6],[19,1,19,2],[24,1,24,2],[8,4,8,6],[9,2,9,6],[10,2,10,6],[11,2,11,6],[12,2,12,6],[13,4,13,6],[14,2,14,3],[14,4,14,6],[15,2,15,6],[55,1,55,4],[62,1,62,2],[67,1,67,2],[72,1,72,24],[84,1,84,3]]}
[]
[]
[]
[]
[]
["המוסד לביטוח לאומי מכרז מס' מ(2029)2018 להקמת מאגר יועצים עבור אגף הקרנות "]
["תחום מס' 2 - בטיחות וגיהות"]
["תהליכים כימיים - 2.3"]
[null,null,"הנחיות למילוי הקובץ"]
[null,1,"יש למלא את כל הנתונים   הנדרשים בעמודות המסומנות בצבע צהוב"]
[null,2,"חלק מנתונים ימולאו באמצעות בחירה מרשימה סגורה, שתוצג בעת המיקום על התא המסוים."]
[null,3,"יש לשמור את הקובץ על גבי:דיסק און קי ."]
[null,4,"לאחר השלמת מילוי כל הנתונים הנדרשים בקובץ, יש לשמור את הקובץ בהתאם לפורמט הרלוונטי מהמפורטים להלן : "]
[null,4.0999999999999996,"יועץ עצמאי: מס' תת תחום-שם היועץ(שם פרטי ושם משפחה)-ת.ז כמודגם להלן: ",null,"2.3-משה כהן-231245799.xlsm "]
[null,4.2,"יועץ המוגש על ידי גורם אחר: מס' תת תחום-שם המגיש-ח.פ /ת.ז -שם היועץ(שם פרטי ושם משפחה)-ת.ז כמודגם להלן: ",null,"2.3-שם המגיש-ח.פ /ת.ז-משה כהן-231245799.xlsm "]
[null,5,"יש להדפיס את הקובץ ולהגישו כאשר הוא חתום על ידי היועץ המוצע "]
[null,6,"יש להגיש את ההצעה בצירוף: הדיסק און קי  ופלט הקובץ המודפס חתום כמפורט בסעיף 5 לעיל."]
[null,"שלב 1:"]
[]
[null,"סוג יועץ מוצע"]
[null,"סוג יועץ  (בחר מתוך רשימה)"]
[]
[null,"שלב 2:"]
[]
[null,"פרטים אישיים",null,null,null,null,null,null,null,null,null,null,null,null,null,null,null,null,null,"טבלת מקצוע/תחום עיסוק","מס' שנים בתחום"]
[null,"מספר זהות",null,null,null,null,null,null,null,null,null,null,null,null,null,null,null,null,null,"אדריכל גנים ופיתוח נוף",5]
[null,"שם פרטי",null,null,null,null,null,null,null,null,null,null,null,null,null,null,null,null,null,"אדריכל פנים","6-10"]
[null,"שם משפחה",null,null,null,null,null,null,null,null,null,null,null,null,null,null,null,null,null,"אדריכל תכנון מבנים","11-15"]
[null,"תאריך לידה",null,null,null,null,null,null,null,null,null,null,null,null,null,null,null,null,null,"יועץ איכות הסביבה","16-20"]
[null,"טלפון",null,null,null,null,null,null,null,null,null,null,null,null,null,null,null,null,null,"יועץ אלומיניום","מעל 20 "]
[null,"טלפון נייד",null,null,null,null,null,null,null,null,null,null,null,null,null,null,null,null,null,"יועץ ביטוח"]
[null,"פקס",null,null,null,null,null,null,null,null,null,null,null,null,null,null,null,null,null,"יועץ ומתכנן מערכות חשמל","סוג יועץ"]
[null,"דואר אלקטרוני",null,null,null,null,null,null,null,null,null,null,null,null,null,null,null,null,null,"יועץ ומתכנן תנועה","יועץ עצמאי"]
[null,"רחוב",null,null,null,null,null,null,null,null,null,null,null,null,null,null,null,null,null,"יועץ להכנת מפרטים וכתבי כמויות","יועץ שכיר"]
[null,"מס' בית",null,null,null,null,null,null,null,null,null,null,null,null,null,null,null,null,null,"יועץ לרישום מבנים"]
[null,"דירה",null,null,null,null,null,null,null,null,null,null,null,null,null,null,null,null,null,"יועץ נגישות","תואר"]
[null,"ת.ד.",null,null,null,null,null,null,null,null,null,null,null,null,null,null,null,null,null,"יועץ סופרפוזיציה","הנדסאי"]
[null,"ישוב",null,null,null,null,null,null,null,null,null,null,null,null,null,null,null,null,null,"יועץ רכש ציוד רפואי","טכנאי"]
[null,"מיקוד",null,null,null,null,null,null,null,null,null,null,null,null,null,null,null,null,null,"יועץ תכנון ובקרת מטבחים וחדרי אוכל","יועץ ביטוח"]
[null,null,null,null,null,null,null,null,null,null,null,null,null,null,null,null,null,null,null,null,"יועץ/מתכנן מעליות","ראשון",null,null,null,null,null,null,"יועץ נגישות (מבנים תשתיות וסביבה)"]
[null,"פרטי התאגיד מטעמו מוגש היועץ (במקרה של יועץ המועסק אצל אחר)"]
[null,"שם התאגיד"]
[null,"ח.פ/מספר מזהה"]
[null,"טלפון "]
[null,"פקס"]
[null,"דואר אלקטרוני"]
[null,"רחוב"]
[null,"מס' "]
[null,"דירה"]
[null,"ת.ד."]
[null,"ישוב"]
[null,"מיקוד"]
[]
[null,"שלב 3: - יש למלא בטבלה זו את כל תחומי העיסוק אליהם מוגשת ההצעה בהתאם לשמות ולמספרים שלהם בנספח ב'"]
[]
[null,"השכלה אקדמית"]
[null,"תואר","השכלה","תאריך קבלת הזכאות לתואר (יש להזין תאריך בפורמט הבא: dd/mm/yyyy)","שנות ותק מיום קבלת הזכאות"]
[null,null,null,null,{"$f":"IF(D58<>\"\",(TODAY()-D58)/365,\"\")","v":""}]
[null,null,null,null,{"$f":"IF(D59<>\"\",(TODAY()-D59)/365,\"\")","v":""}]
[null,null,null,null,""]
[]
[]
[null,"רישום / רישיון"]
[null,"רישום/ רישיון מאיגוד/ משרד ממשלתי","תאריך זכאות (יש להזין תאריך בפורמט: dd/mm/yyyy)"]
[]
[]
[]
[null,"ניסיון מקצועי"]
[null,"ניסיון מקצועי ","מספר שנות ותק ממועד הזכאות לתואר"]
[]
[]
[]
[null,"רשימת פרויקטים (יש להקפיד על הצגת פרויקטים שיתאימו לדרישות תקופת הניסיון המופרטות בעמודה 5, בנספח ב')"]
[null,"שם/נושא הפרויקט","שם הגוף עבורו בוצע הפרויקט","תיאור השירותים","שם המזמין/ הממליץ","טלפון","מועד התחלה",null,null,null,null,null,null,null,null,null,null,null,null,null,"יועץ/מתכנן מערכות מתח נמוך","שלישי",null,null,"מועד סיום",null,null,null,"יועץ כלכלי"]
[null,null,null,null,null,null,null,null,null,null,null,null,null,null,null,null,null,null,null,null,"יעוץ ותכנון בטיחות/מהנדס בטיחות","שני",null,null,null,null,null,null,"הנדסת תעשייה וניהול"]
[null,null,null,null,null,null,null,null,null,null,null,null,null,null,null,null,null,null,null,null,"כלכלן",null,null,null,null,null,null,null,"מנהל פרויקטים"]
[null,null,null,null,null,null,null,null,null,null,null,null,null,null,null,null,null,null,null,null,"מהנדס אזרחי",null,null,null,null,null,null,null,"סטטיסטיקאי"]
[null,null,null,null,null,null,null,null,null,null,null,null,null,null,null,null,null,null,null,null,"מהנדס אינסטלציה",null,null,null,null,null,null,null,"רואה חשבון"]
[null,null,null,null,null,null,null,null,null,null,null,null,null,null,null,null,null,null,null,null,null,null,null,null,null,null,null,null,"יועץ מערכות מידע"]
[null,null,null,null,null,null,null,null,null,null,null,null,null,null,null,null,null,null,null,null,null,null,null,null,null,null,null,null,"בניית אתרי אינטרנט "]
[null,null,null,null,null,null,null,null,null,null,null,null,null,null,null,null,null,null,null,null,null,null,null,null,null,null,null,null,"Web-Master"]
[null,null,null,null,null,null,null,null,null,null,null,null,null,null,null,null,null,null,null,null,"מהנדס אלקטרוניקה",null,null,null,null,null,null,null,"יועץ פיתוח מדיה , שיווק ופרסום"]
[null,null,null,null,null,null,null,null,null,null,null,null,null,null,null,null,null,null,null,null,"מהנדס אקוסטיקה",null,null,null,null,null,null,null,"ייעוץ בתחום מדעי  החברה"]
[null,null,null,null,null,null,null,"שנת סיום",null,null,null,null,null,null,null,null,null,null,null,null,"מהנדס מיזוג אויר",null,null,null,null,null,null,null,"רופא תעסוקתי"]
[null,"הנני מצהיר בזאת שכל הפרטים והנתונים שמולאו על ידי בקובץ זה נכונים ומעודכנים ליום הגשת ההצעה"]
[]
[null,null,null,null,null,null,null,null,null,null,null,null,null,null,null,null,null,null,null,null,null,null,null,null,null,null,null,null,"ממונה בטיחות ביולוגית"]
[null,"חתימת היועץ",null,"תאריך"]

{"sheet":"בטיחות ביולוגית - 2.4","index":4,"n_rows":85,"n_cols":29,"rows_kept":85,"cut":false,"hidden":false,"merged":[[5,0,5,6],[6,0,6,6],[7,0,7,6],[19,1,19,2],[24,1,24,2],[8,4,8,6],[9,2,9,6],[10,2,10,6],[11,2,11,6],[12,2,12,6],[13,4,13,6],[14,2,14,3],[14,4,14,6],[15,2,15,6],[55,1,55,4],[66,1,66,24],[81,1,81,3],[61,1,61,2],[40,1,40,2]]}
[]
[]
[]
[]
[]
["המוסד לביטוח לאומי מכרז מס' מ(2029)2018 להקמת מאגר יועצים עבור אגף הקרנות "]
["תחום מס' 2 - בטיחות וגיהות"]
["בטיחות ביולוגית - 2.4"]
[null,null,"הנחיות למילוי הקובץ"]
[null,1,"יש למלא את כל הנתונים   הנדרשים בעמודות המסומנות בצבע צהוב"]
[null,2,"חלק מנתונים ימולאו באמצעות בחירה מרשימה סגורה, שתוצג בעת המיקום על התא המסוים."]
[null,3,"יש לשמור את הקובץ על גבי:דיסק און קי ."]
[null,4,"לאחר השלמת מילוי כל הנתונים הנדרשים בקובץ, יש לשמור את הקובץ בהתאם לפורמט הרלוונטי מהמפורטים להלן : "]
[null,4.0999999999999996,"יועץ עצמאי: מס' תת תחום-שם היועץ(שם פרטי ושם משפחה)-ת.ז כמודגם להלן: ",null,"2.4-משה כהן-231245799.xlsm "]
[null,4.2,"יועץ המוגש על ידי גורם אחר: מס' תת תחום-שם המגיש-ח.פ /ת.ז -שם היועץ(שם פרטי ושם משפחה)-ת.ז כמודגם להלן: ",null,"2.4-שם המגיש-ח.פ /ת.ז-משה כהן-231245799.xlsm "]
[null,5,"יש להדפיס את הקובץ ולהגישו כאשר הוא חתום על ידי היועץ המוצע "]
[null,6,"יש להגיש את ההצעה בצירוף: הדיסק און קי  ופלט הקובץ המודפס חתום כמפורט בסעיף 5 לעיל."]
[null,"שלב 1:"]
[]
[null,"סוג יועץ מוצע"]
[null,"סוג יועץ  (בחר מתוך רשימה)"]
[]
[null,"שלב 2:"]
[]
[null,"פרטים אישיים",null,null,null,null,null,null,null,null,null,null,null,null,null,null,null,null,null,"טבלת מקצוע/תחום עיסוק","מס' שנים בתחום"]
[null,"מספר זהות",null,null,null,null,null,null,null,null,null,null,null,null,null,null,null,null,null,"אדריכל גנים ופיתוח נוף",5]
[null,"שם פרטי",null,null,null,null,null,null,null,null,null,null,null,null,null,null,null,null,null,"אדריכל פנים","6-10"]
[null,"שם משפחה",null,null,null,null,null,null,null,null,null,null,null,null,null,null,null,null,null,"אדריכל תכנון מבנים","11-15"]
[null,"תאריך לידה",null,null,null,null,null,null,null,null,null,null,null,null,null,null,null,null,null,"יועץ איכות הסביבה","16-20"]
[null,"טלפון",null,null,null,null,null,null,null,null,null,null,null,null,null,null,null,null,null,"יועץ אלומיניום","מעל 20 "]
[null,"טלפון נייד",null,null,null,null,null,null,null,null,null,null,null,null,null,null,null,null,null,"יועץ ביטוח"]
[null,"פקס",null,null,null,null,null,null,null,null,null,null,null,null,null,null,null,null,null,"יועץ ומתכנן מערכות חשמל","סוג יועץ"]
[null,"דואר אלקטרוני",null,null,null,null,null,null,null,null,null,null,null,null,null,null,null,null,null,"יועץ ומתכנן תנועה","יועץ עצמאי"]
[null,"רחוב",null,null,null,null,null,null,null,null,null,null,null,null,null,null,null,null,null,"יועץ להכנת מפרטים וכתבי כמויות","יועץ שכיר"]
[null,"מס' בית",null,null,null,null,null,null,null,null,null,null,null,null,null,null,null,null,null,"יועץ לרישום מבנים"]
[null,"דירה",null,null,null,null,null,null,null,null,null,null,null,null,null,null,null,null,null,"יועץ נגישות","תואר"]
[null,"ת.ד.",null,null,null,null,null,null,null,null,null,null,null,null,null,null,null,null,null,"יועץ סופרפוזיציה","הנדסאי"]
[null,"ישוב",null,null,null,null,null,null,null,null,null,null,null,null,null,null,null,null,null,"יועץ רכש ציוד רפואי","טכנאי"]
[null,"מיקוד",null,null,null,null,null,null,null,null,null,null,null,null,null,null,null,null,null,"יועץ תכנון ובקרת מטבחים וחדרי אוכל","יועץ ביטוח"]
[null,null,null,null,null,null,null,null,null,null,null,null,null,null,null,null,null,null,null,null,"יועץ/מתכנן מעליות","ראשון"]
[null,"פרטי התאגיד מטעמו מוגש היועץ (במקרה של יועץ המועסק אצל אחר)"]
[null,"שם התאגיד"]
[null,"ח.פ/מספר מזהה"]
[null,"טלפון "]
[null,"פקס"]
[null,"דואר אלקטרוני"]
[null,"רחוב"]
[null,"מס' "]
[null,"דירה"]
[null,"ת.ד."]
[null,"ישוב"]
[null,"מיקוד"]
[]
[null,"שלב 3: - יש למלא בטבלה זו את כל תחומי העיסוק אליהם מוגשת ההצעה בהתאם לשמות ולמספרים שלהם בנספח ב'"]
[]
[null,"השכלה אקדמית"]
[null,"תואר","השכלה","תאריך קבלת הזכאות לתואר (יש להזין תאריך בפורמט הבא: dd/mm/yyyy)","שנות ותק מיום קבלת הזכאות"]
[null,null,null,null,{"$f":"IF(D58<>\"\",(TODAY()-D58)/365,\"\")","v":""}]
[null,null,null,null,{"$f":"IF(D59<>\"\",(TODAY()-D59)/365,\"\")","v":""}]
[null,null,null,null,{"$f":"IF(D60<>\"\",(TODAY()-D60)/365,\"\")","v":""}]
[]
[null,"ניסיון מקצועי"]
[null,"ניסיון מקצועי באחד או יותר מהתחומים המפורטים","מספר שנות ותק מיום קבלת הזכאות לתואר"]
[]
[]
[]
[null,"רשימת פרויקטים (יש להקפיד על הצגת פרויקטים שיתאימו לדרישות תקופת הניסיון המופרטות בעמודה 5, בנספח ב')"]
[null,"שם/נושא הפרויקט","שם הגוף עבורו בוצע הפרויקט","תיאור השירותים","שם המזמין/ הממליץ","טלפון","מועד התחלה",null,null,null,null,null,null,null,null,null,null,null,null,null,"יועץ/מתכנן מערכות מתח נמוך","שלישי",null,null,"מועד סיום",null,null,null,"יועץ כלכלי"]
[null,null,null,null,null,null,null,null,null,null,null,null,null,null,null,null,null,null,null,null,"יעוץ ותכנון בטיחות/מהנדס בטיחות","שני",null,null,null,null,null,null,"הנדסת תעשייה וניהול"]
[null,null,null,null,null,null,null,null,null,null,null,null,null,null,null,null,null,null,null,null,"כלכלן",null,null,null,null,null,null,null,"מנהל פרויקטים"]
[null,null,null,null,null,null,null,null,null,null,null,null,null,null,null,null,null,null,null,null,"מהנדס אזרחי",null,null,null,null,null,null,null,"סטטיסטיקאי"]
[null,null,null,null,null,null,null,null,null,null,null,null,null,null,null,null,null,null,null,null,null,null,null,null,null,null,null,null,"רואה חשבון"]
[null,null,null,null,null,null,null,null,null,null,null,null,null,null,null,null,null,null,null,null,null,null,null,null,null,null,null,null,"יועץ מערכות מידע"]
[null,null,null,null,null,null,null,null,null,null,null,null,null,null,null,null,null,null,null,null,null,null,null,null,null,null,null,null,"בניית אתרי אינטרנט "]
[null,null,null,null,null,null,null,null,null,null,null,null,null,null,null,null,null,null,null,null,"מהנדס אינסטלציה",null,null,null,null,null,null,null,"Web-Master"]
[null,null,null,null,null,null,null,null,null,null,null,null,null,null,null,null,null,null,null,null,"מהנדס אלקטרוניקה",null,null,null,null,null,null,null,"יועץ פיתוח מדיה , שיווק ופרסום"]
[null,null,null,null,null,null,null,null,null,null,null,null,null,null,null,null,null,null,null,null,"מהנדס אקוסטיקה",null,null,null,null,null,null,null,"ייעוץ בתחום מדעי  החברה"]
[null,null,null,null,null,null,null,"שנת סיום",null,null,null,null,null,null,null,null,null,null,null,null,"מהנדס מיזוג אויר",null,null,null,null,null,null,null,"רופא תעסוקתי"]
[null,null,null,null,null,null,null,null,null,null,null,null,null,null,null,null,null,null,null,null,"מהנדס קרקע וביסוס",null,null,null,null,null,null,null,"פסיכולוג קליני"]
[]
[]
[null,"הנני מצהיר בזאת שכל הפרטים והנתונים שמולאו על ידי בקובץ זה נכונים ומעודכנים ליום הגשת ההצעה"]
[]
[null,null,null,null,null,null,null,null,null,null,null,null,null,null,null,null,null,null,null,null,null,null,null,null,null,null,null,null,"ממונה בטיחות ביולוגית"]
[null,"חתימת היועץ",null,"תאריך"]

{"sheet":"רפואה תעסוקתית - 2.5","index":5,"n_rows":90,"n_cols":29,"rows_kept":90,"cut":false,"hidden":false,"merged":[[62,1,62,2],[86,1,86,3],[71,1,71,24],[57,1,57,3],[66,1,66,2],[41,1,41,2],[5,0,5,6],[6,0,6,6],[7,0,7,6],[20,1,20,2],[25,1,25,2],[8,4,8,6],[9,2,9,6],[10,2,10,6],[11,2,11,6],[12,2,12,6],[13,4,13,6],[14,2,14,3],[14,4,14,6],[15,2,15,6]]}
[]
[]
[]
[]
[]
["המוסד לביטוח לאומי מכרז מס' מ(2029)2018 להקמת מאגר יועצים עבור אגף הקרנות "]
["תחום מס' 2 - בטיחות וגיהות"]
["רפואה תעסוקתית - 2.5"]
[null,null,"הנחיות למילוי הקובץ"]
[null,1,"יש למלא את כל הנתונים   הנדרשים בעמודות המסומנות בצבע צהוב"]
[null,2,"חלק מנתונים ימולאו באמצעות בחירה מרשימה סגורה, שתוצג בעת המיקום על התא המסוים."]
[null,3,"יש לשמור את הקובץ על גבי:דיסק און קי ."]
[null,4,"לאחר השלמת מילוי כל הנתונים הנדרשים בקובץ, יש לשמור את הקובץ בהתאם לפורמט הרלוונטי מהמפורטים להלן : "]
[null,4.0999999999999996,"יועץ עצמאי: מס' תת תחום-שם היועץ(שם פרטי ושם משפחה)-ת.ז כמודגם להלן: ",null,"2.5-משה כהן-231245799.xlsm "]
[null,4.2,"יועץ המוגש על ידי גורם אחר: מס' תת תחום-שם המגיש-ח.פ /ת.ז -שם היועץ(שם פרטי ושם משפחה)-ת.ז כמודגם להלן: ",null,"2.5-שם המגיש-ח.פ /ת.ז-משה כהן-231245799.xlsm "]
[null,5,"יש להדפיס את הקובץ ולהגישו כאשר הוא חתום על ידי היועץ המוצע "]
[null,6,"יש להגיש את ההצעה בצירוף: הדיסק און קי  ופלט הקובץ המודפס חתום כמפורט בסעיף 5 לעיל."]
[]
[null,"שלב 1:"]
[]
[null,"סוג יועץ מוצע"]
[null,"סוג יועץ  (בחר מתוך רשימה)"]
[]
[null,"שלב 2:"]
[]
[null,"פרטים אישיים",null,null,null,null,null,null,null,null,null,null,null,null,null,null,null,null,null,"טבלת מקצוע/תחום עיסוק","מס' שנים בתחום"]
[null,"מספר זהות",null,null,null,null,null,null,null,null,null,null,null,null,null,null,null,null,null,"אדריכל גנים ופיתוח נוף",5]
[null,"שם פרטי",null,null,null,null,null,null,null,null,null,null,null,null,null,null,null,null,null,"אדריכל פנים","6-10"]
[null,"שם משפחה",null,null,null,null,null,null,null,null,null,null,null,null,null,null,null,null,null,"אדריכל תכנון מבנים","11-15"]
[null,"תאריך לידה",null,null,null,null,null,null,null,null,null,null,null,null,null,null,null,null,null,"יועץ איכות הסביבה","16-20"]
[null,"טלפון",null,null,null,null,null,null,null,null,null,null,null,null,null,null,null,null,null,"יועץ אלומיניום","מעל 20 "]
[null,"טלפון נייד",null,null,null,null,null,null,null,null,null,null,null,null,null,null,null,null,null,"יועץ ביטוח"]
[null,"פקס",null,null,null,null,null,null,null,null,null,null,null,null,null,null,null,null,null,"יועץ ומתכנן מערכות חשמל","סוג יועץ"]
[null,"דואר אלקטרוני",null,null,null,null,null,null,null,null,null,null,null,null,null,null,null,null,null,"יועץ ומתכנן תנועה","יועץ עצמאי"]
[null,"רחוב",null,null,null,null,null,null,null,null,null,null,null,null,null,null,null,null,null,"יועץ להכנת מפרטים וכתבי כמויות","יועץ שכיר"]
[null,"מס' בית",null,null,null,null,null,null,null,null,null,null,null,null,null,null,null,null,null,"יועץ לרישום מבנים"]
[null,"דירה",null,null,null,null,null,null,null,null,null,null,null,null,null,null,null,null,null,"יועץ נגישות","תואר"]
[null,"ת.ד.",null,null,null,null,null,null,null,null,null,null,null,null,null,null,null,null,null,"יועץ סופרפוזיציה","הנדסאי"]
[null,"ישוב",null,null,null,null,null,null,null,null,null,null,null,null,null,null,null,null,null,"יועץ רכש ציוד רפואי","טכנאי"]
[null,"מיקוד",null,null,null,null,null,null,null,null,null,null,null,null,null,null,null,null,null,"יועץ תכנון ובקרת מטבחים וחדרי אוכל","יועץ ביטוח"]
[null,null,null,null,null,null,null,null,null,null,null,null,null,null,null,null,null,null,null,null,"יועץ/מתכנן מעליות","ראשון"]
[null,"פרטי התאגיד מטעמו מוגש היועץ (במקרה של יועץ המועסק אצל אחר)"]
[null,"שם התאגיד"]
[null,"ח.פ/מספר מזהה"]
[null,"טלפון "]
[null,"פקס"]
[null,"דואר אלקטרוני"]
[null,"רחוב"]
[null,"מס' "]
[null,"דירה"]
[null,"ת.ד."]
[null,"ישוב"]
[null,"מיקוד"]
[]
[null,"שלב 3: - יש למלא בטבלה זו את כל תחומי העיסוק אליהם מוגשת ההצעה בהתאם לשמות ולמספרים שלהם בנספח ב'"]
[]
[]
[null,"השכלה אקדמית"]
[null,"השכלה","תאריך קבלת הזכאות לתואר (יש להזין תאריך בפורמט הבא: dd/mm/yyyy)","שנות ותק מיום קבלת הזכאות"]
[null,"רופא/ה עם התמחות ברפואה תעסוקתית",null,{"$f":"IF(C60<>\"\",(TODAY()-C60)/365,\"\")","v":""}]
[]
[]
[null,"רישום / רישיון"]
[null,"רישום/ רישיון מאיגוד/ משרד ממשלתי","תאריך זכאות (יש להזין תאריך בפורמט: dd/mm/yyyy)"]
[null,"רישיון לעסוק ברפואה מטעם משרד הבריאות","1990-05-05"]
[]
[null,"ניסיון מקצועי"]
[null,"ניסיון מקצועי באחד או יותר מהתחומים המפורטים","מספר שנות ותק מיום סיום ההתמחות"]
[null,"ניסיון בעבודה במרפאה תעסוקתית",5]
[null,null,null,null,null,null,null,null,null,null,null,null,null,null,null,null,null,null,null,null,null,null,null,null,null,null,null,null,"הנדסת תעשייה וניהול"]
[null,null,null,null,null,null,null,null,null,null,null,null,null,null,null,null,null,null,null,null,null,null,null,null,null,null,null,null,"מנהל פרויקטים"]
[null,"רשימת פרויקטים (יש להקפיד על הצגת פרויקטים שיתאימו לדרישות תקופת הניסיון המופרטות בעמודה 5, בנספח ב')",null,null,null,null,null,null,null,null,null,null,null,null,null,null,null,null,null,null,null,null,null,null,null,null,null,null,"סטטיסטיקאי"]
[null,"שם/נושא הפרויקט","שם הגוף עבורו בוצע הפרויקט","תיאור השירותים","שם המזמין/ הממליץ","טלפון","מועד התחלה",null,null,null,null,null,null,null,null,null,null,null,null,null,"יועץ/מתכנן מערכות מתח נמוך","שלישי",null,null,"מועד סיום",null,null,null,"רואה חשבון"]
[null,null,null,null,null,null,null,null,null,null,null,null,null,null,null,null,null,null,null,null,"יעוץ ותכנון בטיחות/מהנדס בטיחות","שני",null,null,null,null,null,null,"יועץ מערכות מידע"]
[null,null,null,null,null,null,null,null,null,null,null,null,null,null,null,null,null,null,null,null,"כלכלן",null,null,null,null,null,null,null,"בניית אתרי אינטרנט "]
[]
[]
[]
[null,null,null,null,null,null,null,null,null,null,null,null,null,null,null,null,null,null,null,null,"מהנדס אזרחי",null,null,null,null,null,null,null,"Web-Master"]
[null,null,null,null,null,null,null,null,null,null,null,null,null,null,null,null,null,null,null,null,"מהנדס אינסטלציה",null,null,null,null,null,null,null,"יועץ פיתוח מדיה , שיווק ופרסום"]
[null,null,null,null,null,null,null,null,null,null,null,null,null,null,null,null,null,null,null,null,"מהנדס אלקטרוניקה",null,null,null,null,null,null,null,"ייעוץ בתחום מדעי  החברה"]
[null,null,null,null,null,null,null,null,null,null,null,null,null,null,null,null,null,null,null,null,"מהנדס אקוסטיקה",null,null,null,null,null,null,null,"רופא תעסוקתי"]
[null,null,null,null,null,null,null,"שנת סיום",null,null,null,null,null,null,null,null,null,null,null,null,"מהנדס מיזוג אויר",null,null,null,null,null,null,null,"פסיכולוג קליני"]
[]
[]
[]
[null,"הנני מצהיר בזאת שכל הפרטים והנתונים שמולאו על ידי בקובץ זה נכונים ומעודכנים ליום הגשת ההצעה"]
[null,null,null,null,null,null,null,null,null,null,null,null,null,null,null,null,null,null,null,null,null,null,null,null,null,null,null,null,"ממונה בטיחות ביולוגית"]
[]
[null,"חתימת היועץ",null,"תאריך"]

{"sheet":"ארגונומיה - 2.6","index":6,"n_rows":97,"n_cols":29,"rows_kept":97,"cut":false,"hidden":false,"merged":[[59,1,59,4],[68,1,68,2],[93,1,93,3],[78,1,78,24],[73,1,73,2],[43,1,43,2],[5,0,5,6],[6,0,6,6],[7,0,7,6],[22,1,22,2],[27,1,27,2],[8,4,8,6],[9,2,9,6],[10,2,10,6],[11,2,11,6],[12,2,12,6],[13,4,13,6],[14,2,14,3],[14,4,14,6],[15,2,15,6]]}
[]
[]
[]
[]
[]
["המוסד לביטוח לאומי מכרז מס' מ(2029)2018 להקמת מאגר יועצים עבור אגף הקרנות "]
["תחום מס' 2 - בטיחות וגיהות"]
["ארגונומיה - 2.6"]
[null,null,"הנחיות למילוי הקובץ"]
[null,1,"יש למלא את כל הנתונים   הנדרשים בעמודות המסומנות בצבע צהוב"]
[null,2,"חלק מנתונים ימולאו באמצעות בחירה מרשימה סגורה, שתוצג בעת המיקום על התא המסוים."]
[null,3,"יש לשמור את הקובץ על גבי:דיסק און קי ."]
[null,4,"לאחר השלמת מילוי כל הנתונים הנדרשים בקובץ, יש לשמור את הקובץ בהתאם לפורמט הרלוונטי מהמפורטים להלן : "]
[null,4.0999999999999996,"יועץ עצמאי: מס' תת תחום-שם היועץ(שם פרטי ושם משפחה)-ת.ז כמודגם להלן: ",null,"2.6-משה כהן-231245799.xlsm "]
[null,4.2,"יועץ המוגש על ידי גורם אחר: מס' תת תחום-שם המגיש-ח.פ /ת.ז -שם היועץ(שם פרטי ושם משפחה)-ת.ז כמודגם להלן: ",null,"2.6-שם המגיש-ח.פ /ת.ז-משה כהן-231245799.xlsm "]
[null,5,"יש להדפיס את הקובץ ולהגישו כאשר הוא חתום על ידי היועץ המוצע "]
[null,6,"יש להגיש את ההצעה בצירוף: הדיסק און קי  ופלט הקובץ המודפס חתום כמפורט בסעיף 5 לעיל."]
[]
[]
[]
[null,"שלב 1:"]
[]
[null,"סוג יועץ מוצע"]
[null,"סוג יועץ  (בחר מתוך רשימה)"]
[]
[null,"שלב 2:"]
[]
[null,"פרטים אישיים",null,null,null,null,null,null,null,null,null,null,null,null,null,null,null,null,null,"טבלת מקצוע/תחום עיסוק","מס' שנים בתחום"]
[null,"מספר זהות",null,null,null,null,null,null,null,null,null,null,null,null,null,null,null,null,null,"אדריכל גנים ופיתוח נוף",5]
[null,"שם פרטי",null,null,null,null,null,null,null,null,null,null,null,null,null,null,null,null,null,"אדריכל פנים","6-10"]
[null,"שם משפחה",null,null,null,null,null,null,null,null,null,null,null,null,null,null,null,null,null,"אדריכל תכנון מבנים","11-15"]
[null,"תאריך לידה",null,null,null,null,null,null,null,null,null,null,null,null,null,null,null,null,null,"יועץ איכות הסביבה","16-20"]
[null,"טלפון",null,null,null,null,null,null,null,null,null,null,null,null,null,null,null,null,null,"יועץ אלומיניום","מעל 20 "]
[null,"טלפון נייד",null,null,null,null,null,null,null,null,null,null,null,null,null,null,null,null,null,"יועץ ביטוח"]
[null,"פקס",null,null,null,null,null,null,null,null,null,null,null,null,null,null,null,null,null,"יועץ ומתכנן מערכות חשמל","סוג יועץ"]
[null,"דואר אלקטרוני",null,null,null,null,null,null,null,null,null,null,null,null,null,null,null,null,null,"יועץ ומתכנן תנועה","יועץ עצמאי"]
[null,"רחוב",null,null,null,null,null,null,null,null,null,null,null,null,null,null,null,null,null,"יועץ להכנת מפרטים וכתבי כמויות","יועץ שכיר"]
[null,"מס' בית",null,null,null,null,null,null,null,null,null,null,null,null,null,null,null,null,null,"יועץ לרישום מבנים"]
[null,"דירה",null,null,null,null,null,null,null,null,null,null,null,null,null,null,null,null,null,"יועץ נגישות","תואר"]
[null,"ת.ד.",null,null,null,null,null,null,null,null,null,null,null,null,null,null,null,null,null,"יועץ סופרפוזיציה","הנדסאי"]
[null,"ישוב",null,null,null,null,null,null,null,null,null,null,null,null,null,null,null,null,null,"יועץ רכש ציוד רפואי","טכנאי"]
[null,"מיקוד",null,null,null,null,null,null,null,null,null,null,null,null,null,null,null,null,null,"יועץ תכנון ובקרת מטבחים וחדרי אוכל","יועץ ביטוח"]
[null,null,null,null,null,null,null,null,null,null,null,null,null,null,null,null,null,null,null,null,"יועץ/מתכנן מעליות","ראשון"]
[null,"פרטי התאגיד מטעמו מוגש היועץ (במקרה של יועץ המועסק אצל אחר)"]
[null,"שם התאגיד"]
[null,"ח.פ/מספר מזהה"]
[null,"טלפון "]
[null,"פקס"]
[null,"דואר אלקטרוני"]
[null,"רחוב"]
[null,"מס' "]
[null,"דירה"]
[null,"ת.ד."]
[null,"ישוב"]
[null,"מיקוד"]
[]
[null,"שלב 3: - יש למלא בטבלה זו את כל תחומי העיסוק אליהם מוגשת ההצעה בהתאם לשמות ולמספרים שלהם בנספח ב'"]
[]
[]
[null,"השכלה אקדמית"]
[null,"תואר","השכלה","תאריך קבלת הזכאות לתואר (יש להזין תאריך בפורמט הבא: dd/mm/yyyy)","שנות ותק מיום קבלת הזכאות"]
[null,null,null,null,{"$f":"IF(D62<>\"\",(TODAY()-D62)/365,\"\")","v":""}]
[null,null,null,null,{"$f":"IF(D63<>\"\",(TODAY()-D63)/365,\"\")","v":""}]
[null,null,null,null,""]
[null,null,null,null,""]
[null,null,null,null,""]
[]
[]
[null,"רישום / רישיון"]
[null,"רישום/ רישיון מאיגוד/ משרד ממשלתי","תאריך זכאות (יש להזין תאריך בפורמט: dd/mm/yyyy)"]
[]
[]
[]
[null,"ניסיון מקצועי"]
[null,"ניסיון מקצועי באחד או יותר מהתחומים המפורטים","מספר שנות ותק"]
[]
[]
[null,null,null,null,null,null,null,null,null,null,null,null,null,null,null,null,null,null,null,null,null,null,null,null,null,null,null,null,"מנהל פרויקטים"]
[null,"רשימת פרויקטים (יש להקפיד על הצגת פרויקטים שיתאימו לדרישות תקופת הניסיון המופרטות בעמודה 5, בנספח ב')",null,null,null,null,null,null,null,null,null,null,null,null,null,null,null,null,null,null,null,null,null,null,null,null,null,null,"סטטיסטיקאי"]
[null,"שם/נושא הפרויקט","שם הגוף עבורו בוצע הפרויקט","תיאור השירותים","שם המזמין/ הממליץ","טלפון","מועד התחלה",null,null,null,null,null,null,null,null,null,null,null,null,null,"יועץ/מתכנן מערכות מתח נמוך","שלישי",null,null,"מועד סיום",null,null,null,"רואה חשבון"]
[null,null,null,null,null,null,null,null,null,null,null,null,null,null,null,null,null,null,null,null,"יעוץ ותכנון בטיחות/מהנדס בטיחות","שני",null,null,null,null,null,null,"יועץ מערכות מידע"]
[]
[]
[]
[null,null,null,null,null,null,null,null,null,null,null,null,null,null,null,null,null,null,null,null,"כלכלן",null,null,null,null,null,null,null,"בניית אתרי אינטרנט "]
[null,null,null,null,null,null,null,null,null,null,null,null,null,null,null,null,null,null,null,null,"מהנדס אזרחי",null,null,null,null,null,null,null,"Web-Master"]
[null,null,null,null,null,null,null,null,null,null,null,null,null,null,null,null,null,null,null,null,"מהנדס אינסטלציה",null,null,null,null,null,null,null,"יועץ פיתוח מדיה , שיווק ופרסום"]
[null,null,null,null,null,null,null,null,null,null,null,null,null,null,null,null,null,null,null,null,"מהנדס אלקטרוניקה",null,null,null,null,null,null,null,"ייעוץ בתחום מדעי  החברה"]
[null,null,null,null,null,null,null,null,null,null,null,null,null,null,null,null,null,null,null,null,"מהנדס אקוסטיקה",null,null,null,null,null,null,null,"רופא תעסוקתי"]
[null,null,null,null,null,null,null,"שנת סיום",null,null,null,null,null,null,null,null,null,null,null,null,"מהנדס מיזוג אויר",null,null,null,null,null,null,null,"פסיכולוג קליני"]
[]
[]
[]
[null,"הנני מצהיר בזאת שכל הפרטים והנתונים שמולאו על ידי בקובץ זה נכונים ומעודכנים ליום הגשת ההצעה"]
[null,null,null,null,null,null,null,null,null,null,null,null,null,null,null,null,null,null,null,null,null,null,null,null,null,null,null,null,"ממונה בטיחות ביולוגית"]
[]
[null,"חתימת היועץ",null,"תאריך"]

{"sheet":"בחירה מרשימה","index":7,"n_rows":88,"n_cols":7,"rows_kept":88,"cut":false,"hidden":true,"merged":[]}
["בגיהות ",null,null,5,null,"ראשון","הנדסה אזרחית"]
["בבריאות בתעסוקה",null,null,"6 עד 10",null,"שני"]
["תואר שני בהנדסת בטיחות",null,null,"11 עד 15",null,"שלישי"]
["תואר בביולוגיה",null,null,"16 עד 20",null,"בוגר קורס","הנדסת חשמל"]
["בוגר קורס ממונה בטיחות",null,null,"מעל 20",null,null,"הנדסת אלקטרוניקה"]
["בוגר קורס ממונה בטיחות ביולוגית"]
[]
[null,null,null,null,null,null,"הנדסת מכונות"]
[null,null,null,null,null,null,"הנדסת חשמל"]
[]
[]
["עצמאי"]
["מועסק על ידי אחר"]
[]
["רישום בפנקס המהנדסים והאדריכלים"]
["רישיון בתוקף להנדסה אזרחית - מבנים ממשרד העבודה והרווחה והשירותים החברתיים"]
[]
[]
["הובלת 5 פרויקטים לפחות בתחום בטיחות בעבודה עבור 3 לקוחות שונים במצטבר"]
["לבעלי תואר שאינם נדרשים להציג תעודת ממונה בטיחות בעמודת ההשכלה ,נדרש ניסיון בהובלת 7 פרויקטים לפחות בתחום הבטיחות בעבודה עבור-3 לקוחות שונים במצטבר"]
[]
[]
["ניסיון כממונה בטיחות ביולוגית בארגון"]
[]
[]
[]
["ניסיון בעבודה ניהולת בתחום גיהות"]
["ניסיון בעבודה במתן שירותי גיהות"]
[]
[5]
["5 ואילך"]
[]
["ניסיון בניהול מערכות בטיחות במפעלים כימיים"]
[]
["תואר בכימיה"]
["תואר בהנדסת כימיה"]
[]
[]
[]
["רישום בפנקס המהנדסים והאדריכלים"]
["תעודת ממונה בטיחות"]
["תעודת ממונה בטיחות ביולוגית"]
[]
["חמש ואילך - עבור מהנדסים"]
["עשר ואילך - עבור הנדסאים"]
[]
["הובלת 5 פרויקטים לפחות בתחום בטיחות בעבודה עבור 3 לקוחות שונים במצטבר"]
["לבעלי תואר שאינם נדרשים להציג תעודת ממונה בטיחות בעמודת ההשכלה ,נדרש ניסיון בהובלת 7 פרויקטים לפחות בתחום הבטיחות בעבודה עבור-3 לקוחות שונים במצטבר"]
[]
[]
["הנדסת בטיחות",null,"הנדסת בטיחות"]
["בריאות בתעסוקה",null,"בריאות בתעסוקה"]
["מדעי הטבע",null,"גיהות"]
["ממונה בטיחות בעבודה"]
[]
["ממונה בטיחות"]
["רישום בפנקס המהנדסים והאדריכלים"]
[]
["רופא/ה עם התמחות ברפואה תעסוקתית"]
[]
["רישיון לעסוק ברפואה מטעם משרד הבריאות"]
["ניסיון בעבודה במרפאה תעסוקתית"]
[]
[]
["תואר בארגונומיה"]
["תואר בפסיכולוגיה קוגנטיבית"]
["פיזיותרפיה"]
["תואר בחינוך גופני"]
["תואר בריפוי בעיסוק"]
["תואר בתעשייה וניהול"]
[]
["רישיון מטעם משרד הבריאות"]
["רישום בפנקס המהנדסים והאדריכלים"]
[]
["ניסיון בהתאמת עמדות עבודה ב 3 מקומות לפחות"]
["התאמת ציוד למניעת היפגעות שריר שלד עבור העובד ב 3 מקומות עבודה לפחות"]
[]
[5]
["5 ומעלה"]
[]
[]
["תעודת ממונה בטיחות כשירות בתוקף מטעם משרד העבודה הרווחה והשירותים החברתיים "]
["תעודת ממונה בטיחות ביולוגית בתוקף מטעם משרד העבודה הרווחה והשירותים החברתיים"]
[]
["2 שנים מיום סיום קורס בטיחות ביולוגית"]
[]
["3 שנים מיום סיום ההתמחות"]
["יותר מ 3 שנים מיום סיום ההתמחות"]